Cogmind - Beta 14 *** ADVENTURER MODE // 2025.03.26 @ 17:29:38 Player: Senbatale Result: Self-destructed Performance ------------- Evolutions (2) 1000 Regions Visited (3) 600 Robots Destroyed (9) 45 Value Destroyed (263) 263 Prototype IDs (1) 20 Alien Tech Used (0) 0 Bonus (0) 0 TOTAL SCORE: 1928 Bonus ------- None Cogmind --------- Core Integrity 528/550 Matter 173/300 Energy 125/125 System Corruption 0% Temperature Cool (0) Movement Hovering (116) Ox1 Location -8/Materials Parts ------- > --- POWER (1) -------- Light Ion Engine > --- PROPULSION (2) --- Airjet Airjet > --- UTILITY (5) ------ Small Storage Unit Improved Terrain Scanner Core Shielding Core Shielding Hardened Medium Armor Plating > --- WEAPON (3) ------- Improved Assault Rifle Improved Assault Rifle Grenade Launcher > --- INVENTORY (8) ---- Airjet Airjet Airjet Core Shielding Hardened Medium Armor Plating Field Laser Pulse Rifle Rocket Launcher Peak State ------------ > --- POWER ------------ Light Ion Engine > --- PROPULSION ------- Airjet Airjet > --- UTILITY ---------- Small Storage Unit Improved Terrain Scanner Core Shielding Core Shielding Hardened Medium Armor Plating > --- WEAPON ----------- Improved Assault Rifle Improved Assault Rifle Grenade Launcher > --- INVENTORY -------- Airjet Airjet Core Shielding Hardened Medium Armor Plating Field Laser Pulse Rifle Improved Assault Rifle Rocket Launcher [Rating: 25] Favorites ----------- Power Light Ion Engine Engine Light Ion Engine Propulsion Compact Wheel Wheel Compact Wheel Hover Unit Airjet Utility Small Storage Unit Device Improved Terrain Scanner Storage Small Storage Unit Protection Core Shielding Weapon Improved Assault Rifle Ballistic Gun Improved Assault Rifle Launcher Grenade Launcher Build | -11 -10 -9 -8 ------- Run | Yrd Mat Mat Mat Slots Evolved 4 | . . 2 2 Power . | . . . . Propulsion . | . . . . Utility 3 | . . 1 2 Weapon 1 | . . 1 . Parts Attached 17 | 7 . 4 6 Power 2 | 1 . . 1 Engine 2 | 1 . . 1 Core . | . . . . Reactor . | . . . . Propulsion 5 | 2 . . 3 Treads . | . . . . Leg . | . . . . Wheel 2 | 2 . . . Hover 3 | . . . 3 Flight . | . . . . Utility 5 | 2 . 1 2 Device 1 | 1 . . . Storage 1 | 1 . . . Processor . | . . . . Hackware . | . . . . Protection 3 | . . 1 2 Artifact . | . . . . Weapon 5 | 2 . 3 . Energy Gun . | . . . . Energy Cannon . | . . . . Ballistic Gun 4 | 2 . 2 . Ballistic Cannon . | . . . . Launcher 1 | . . 1 . Special Weapon . | . . . . Impact Weapon . | . . . . Slashing Weapon . | . . . . Piercing Weapon . | . . . . Special Melee Weapon . | . . . . Unidentified Prototypes 1 | . . 1 . Parts Lost . | . . . . Power . | . . . . Propulsion . | . . . . Utility . | . . . . Weapon . | . . . . Highest Loss Streak . | . . . . To Critical Strikes . | . . . . Average Slot Usage (%) 98 | . 100 96 100 Engine 11 | . 14 11 9 Wheel 17 | . 28 22 6 Hover 4 | . . . 11 Device 11 | . 14 11 9 Storage 11 | . 14 11 9 Protection 13 | . . 9 27 Ballistic Gun 21 | . 28 21 18 Launcher 6 | . . 9 9 Peak Build Rating 25 | 9 9 16 25 Average Rating 15 | 5 9 14 23 On Entrance 8 | . 9 9 16 Naked Turns . | . . . . Heaviest Build 28 | 11 11 19 28 Greatest Support 26 | 26 26 26 26 Greatest Overweight (x) 3 | . . . 3 Average Overweight (x) . | . . . 1 Largest Inventory Capacity 8 | 8 8 8 8 Average Capacity 7 | 7 8 8 8 Most Carried 8 | 3 8 8 8 Average Carried 6 | 1 6 7 7 Final Capacity 8 | 8 8 8 8 Final Carried 8 | 3 8 8 8 Class Distribution -------------------- 36% | Mutant 32% | Skirmisher 31% | Tank Dominant Class ---------------- Mutant | -10/Materials Skirmisher | -9/Materials Tank | -8/Materials Resources | -11 -10 -9 -8 ----------- Run | Yrd Mat Mat Mat Matter Collected 399 | 276 10 51 62 Remotely . | . . . . Salvage Created 336 | 70 57 51 158 Parts 20 | 4 7 2 7 Haulers Intercepted . | . . . . Recyclers Shooed 1 | 1 . . . Parts Field Recycled . | . . . . Retrieved Matter . | . . . . Parts Self-Destructed . | . . . . Prevented . | . . . . Kills | -11 -10 -9 -8 ------- Run | Yrd Mat Mat Mat Combat Hostiles Destroyed 5 | . . 1 4 Guns 4 | . . 1 3 AOE 1 | . . . 1 Classes Destroyed 6 | 2 2 1 1 Worker 1 | . 1 . . Tunneler 1 | 1 . . . Recycler 1 | 1 . . . Watcher 1 | . 1 . . Grunt 4 | . . . 4 Sentry 1 | . . 1 . Best Kill Streak 4 | 2 1 1 4 Combat Bots Only 4 | . . 1 4 Max Kills in Single Turn 1 | 1 1 1 1 Gunslinging . | . . . . Exploded 1 | . . . 1 Melee . | . . . . Uniques/NPCs Destroyed . | . . . . Combat | -11 -10 -9 -8 -------- Run | Yrd Mat Mat Mat Hostile Shots Fired 52 | . 7 12 33 Missed 14 | . 2 2 10 Damage Taken 417 | . 37 95 285 Core 45 | . 4 19 22 Absorbed by Shields . | . . . . Redirected to Shielding 8 | . . 4 4 Ignored by Resistances 123 | . 13 27 83 Core Remaining (%) 97 | 100 98 95 . Volleys Fired 27 | 5 4 5 13 Largest 3 | 2 2 2 3 Hottest 76 | 40 40 46 76 Shots Fired 57 | 10 8 10 29 Gun 54 | 10 8 10 26 Cannon . | . . . . Launcher 3 | . . . 3 Special . | . . . . Kinetic 54 | 10 8 10 26 Thermal . | . . . . Explosive 3 | . . . 3 Electromagnetic . | . . . . Robot Hit Streak 14 | 6 6 11 14 Robot Miss Streak 2 | 1 1 1 2 Penetration Max . | . . . . Secondary Targets 1 | . . . 1 Max Gunslinging Chain 1 | . . . 1 Shots Hit Robots 40 | 7 6 8 19 Core Hits 23 | 3 4 2 14 Critical Kills . | . . . . Critical Parts Destroyed . | . . . . Critical Strikes . | . . . . Melee Attacks . | . . . . Impact . | . . . . Slashing . | . . . . Piercing . | . . . . Sneak Attacks . | . . . . Combat Hostiles . | . . . . Follow-up Attacks . | . . . . Damage Inflicted 655 | 61 39 130 425 Guns 509 | 61 39 130 279 Cannons . | . . . . Explosions 146 | . . . 146 Melee . | . . . . Ramming . | . . . . Kinetic 509 | 61 39 130 279 Thermal . | . . . . Explosive 146 | . . . 146 Electromagnetic . | . . . . Impact . | . . . . Slashing . | . . . . Piercing . | . . . . Highest Corruption . | . . . . Average Corruption . | . . . . Corruption Purged . | . . . . Corruption Blocked . | . . . . Overload Shots . | . . . . Overflow Damage . | . . . . Projectiles . | . . . . Explosions . | . . . . Melee . | . . . . Knockbacks . | . . . . Impact . | . . . . Kinetic . | . . . . Secondary . | . . . . Self-Inflicted Damage . | . . . . Shots . | . . . . Rammed . | . . . . Targets Rammed . | . . . . Kicked . | . . . . Crushed . | . . . . Highest Temperature 147 | . 9 1 147 Average Temperature 68 | . 9 1 75 Received Heat Transfer 279 | . 18 36 225 Siege Activations . | . . . . Robots Corrupted . | . . . . Combat Hostiles . | . . . . Parts Fried . | . . . . Impact Corruptions . | . . . . Robots Melted . | . . . . Combat Hostiles . | . . . . Parts Melted . | . . . . Heat Transferred . | . . . . Parts Sabotaged . | . . . . Parts Stolen . | . . . . Parts Stripped . | . . . . Power Chain Reactions . | . . . . Alert | -11 -10 -9 -8 ------- Run | Yrd Mat Mat Mat Peak Influence 175 | 10 47 45 175 Initial 16 | . 5 16 16 Average 34 | 3 18 27 63 Maximum Alert Level . | . . . . Low Security (%) 100 | 100 100 100 100 Level 1 . | . . . . Level 2 . | . . . . Level 3 . | . . . . Level 4 . | . . . . Level 5 . | . . . . High Security . | . . . . Max Security . | . . . . Squads Dispatched 2 | . . . 2 Investigation . | . . . . Extermination . | . . . . Reinforcement 1 | . . . 1 Assault . | . . . . Garrison 1 | . . . 1 Intercept . | . . . . Searches Triggered . | . . . . Construction Impeded . | . . . . Haulers Reinforced . | . . . . Active Scanning Responses . | . . . . Cargo Convoy Interrupts . | . . . . Stealth | -11 -10 -9 -8 --------- Run | Yrd Mat Mat Mat Distress Signals 1 | . 1 . . Communications Jammed . | . . . . Distress Signals . | . . . . Times Spotted 19 | . 7 5 7 Peak Tracking Total 6 | . 6 5 3 Tactical Retreats . | . . . . Traps | -11 -10 -9 -8 ------- Run | Yrd Mat Mat Mat Traps Triggered . | . . . . Indirectly . | . . . . Trap Hack Attempts . | . . . . Triggered . | . . . . Disarmed . | . . . . Reprogrammed . | . . . . Reused . | . . . . Traps Extracted . | . . . . Installed . | . . . . Triggered . | . . . . Machines | -11 -10 -9 -8 ---------- Run | Yrd Mat Mat Mat Machines Disabled . | . . . . Max in Single Turn . | . . . . Garrison Access 1 | . . . 1 Machines Repaired . | . . . . Machines Dismantled . | . . . . Machines Sabotaged . | . . . . Overloaded Fab Kills . | . . . . Hacking | -11 -10 -9 -8 --------- Run | Yrd Mat Mat Mat Machines Accessed 3 | . . 2 1 Terminals 2 | . . 2 . Fabricators . | . . . . Repair Stations . | . . . . Recycling Units . | . . . . Scanalyzers . | . . . . Garrison Access 1 | . . . 1 Total Hacks 8 | . . 5 3 Successful 4 | . . 3 1 Failed 4 | . . 2 2 Catastrophic . | . . . . Database Lockouts . | . . . . Manual . | . . . . Terminals 5 | . . 5 . Fabricators . | . . . . Repair Stations . | . . . . Recycling Units . | . . . . Scanalyzers . | . . . . Garrison Access 3 | . . . 3 Terminal Hacks 3 | . . 3 . Alert Level 1 | . . 1 . Unreport Threat 1 | . . 1 . Zone Layout 1 | . . 1 . Fabricator Hacks . | . . . . Repair Station Hacks . | . . . . Recycling Unit Hacks . | . . . . Scanalyzer . | . . . . Garrison Access Hacks 1 | . . . 1 Seal Access 1 | . . . 1 Unauthorized Hacks . | . . . . Terminals . | . . . . Fabricators . | . . . . Repair Stations . | . . . . Recycling Units . | . . . . Scanalyzers . | . . . . Garrison Access . | . . . . Data Cores Recovered . | . . . . Used . | . . . . Hacking Detections 2 | . . 1 1 Full Trace Events . | . . . . Feedback Events . | . . . . Feedback Blocked . | . . . . Robot Schematics Acquired . | . . . . Robots Built . | . . . . Authchips . | . . . . Time . | . . . . Total Robot Build Rating . | . . . . Part Schematics Acquired . | . . . . Parts Built . | . . . . Authchips . | . . . . Time . | . . . . Total Part Build Rating . | . . . . Parts Repaired . | . . . . Time . | . . . . Parts Recycled . | . . . . Recycled Matter . | . . . . Retrieved Matter . | . . . . Retrieved Components . | . . . . Parts Scanalyzed . | . . . . Part Schematics Acquired . | . . . . Parts Damaged . | . . . . Bothacking | -11 -10 -9 -8 ------------ Run | Yrd Mat Mat Mat Used RIF Installer . | . . . . Robots Hacked . | . . . . Non-combat . | . . . . Combat . | . . . . Robot Hacks Applied . | . . . . Relay Couplers Released . | . . . . Fabnet Peak Effective % . | . . . . Robots Rewired . | . . . . Allies Hacked . | . . . . Hacks Repelled . | . . . . Allies | -11 -10 -9 -8 -------- Run | Yrd Mat Mat Mat Total Allies . | . . . . Largest Group . | . . . . Highest-Rated Group . | . . . . Highest-Rated Ally . | . . . . Total Orders . | . . . . Ally Attacks . | . . . . Total Damage . | . . . . Kills . | . . . . Allies Corrupted . | . . . . Allies Melted . | . . . . Intel | -11 -10 -9 -8 ------- Run | Yrd Mat Mat Mat Robot Analysis Total . | . . . . Derelict Logs Recovered . | . . . . Drone Launches . | . . . . Drone Recoveries . | . . . . Exploration | -11 -10 -9 -8 ------------- Run | Yrd Mat Mat Mat Turns Passed 566 | 65 131 181 189 Spaces Moved 403 | 44 105 139 115 Core 2 | 2 . . . Treads . | . . . . Legs . | . . . . Wheels 335 | 42 105 139 49 Hover 66 | . . . 66 Flight . | . . . . Fastest Speed 50 | 50 90 90 105 Average Speed 96 | 88 90 90 114 Slowest Speed 245 | 100 90 90 245 Overloaded Moves . | . . . . Propulsion Burnouts . | . . . . Robots Hopped . | . . . . Cave-ins Triggered . | . . . . Exploration Rate (%) 14 | 4 23 19 12 Regions Visited 3 Branch Regions . Pre-discovered Areas . | . . . . Known Exits Taken . | . . . . Unknown Exits Taken 3 | 1 1 1 . Scrap Searched . | . . . . Spaces Dug . | . . . . Terrain Destroyed 14 | . . . 14 Melee . | . . . . Projectile . | . . . . AOE 14 | . . . 14 Terrain Rammed . | . . . . Walls Destroyed . | . . . . Machines Disabled . | . . . . Actions | -11 -10 -9 -8 --------- Run | Yrd Mat Mat Mat Total 525 | 58 135 185 147 Wait 50 | . 20 30 . Move 400 | 43 104 138 115 Hop . | . . . . Pick Up 18 | 3 6 4 5 Fast Attach 12 | 7 . 2 3 Attach 4 | . . 2 2 Detach 2 | . . . 2 Swap 1 | . . . 1 Drop 11 | . 1 4 6 Fire 27 | 5 4 5 13 Melee . | . . . . Ram . | . . . . Kick . | . . . . Crush . | . . . . Escape Stasis . | . . . . Rewire . | . . . . Trap . | . . . . Miscellaneous . | . . . . Route ------- -11/Scrapyard -10/Materials -9/Materials -8/Materials History --------- Turn | Location | Event 10 | -11/Scrapyard | Discovered new exit (range 15) 66 | -11/Scrapyard | Entered Materials 172 | -10/Materials | Discovered new exit (range 13) 197 | -10/Materials | Entered another Materials area 197 | -9/Materials | Evolved 2 slots: Utility x1, Weapon x1 372 | -9/Materials | Discovered new exit (range 8) 378 | -9/Materials | Entered another Materials area 378 | -8/Materials | Evolved 2 slots: Utility x2 513 | -8/Materials | Garrison activated, responded to threat 567 | -8/Materials | Self-destructed Last Messages --------------- 00549_ Acquired 9 matter. 00549_ U-05 Engineer lays Concrete. 00549_ U-05 Engineer builds a Wall. 00550_ U-05 Engineer lays Concrete. 00551_ Connecting with Garrison Access... 00551_ Current location identified: Materials >>Seal Access door sealed. 00551_ Dropped Airjet. 00551_ U-05 Engineer builds a Wall. 00553_ U-05 Engineer lays Concrete. 00553_ U-05 Engineer builds a Wall. 00554_ K-01 Serf collects debris. 00556_ U-05 Engineer lays Concrete. 00556_ Acquired Airjet. 00557_ U-05 Engineer builds a Wall. 00559_ K-01 Serf collects debris. 00560_ U-05 Engineer lays Concrete. 00562_ U-05 Engineer builds a Wall. 00563_ K-01 Serf collects debris. Map ----- +----------------------------------------------------+ | ?? ??# [ ## #??? ???????????????? | | ??? ?## = ## #???? ?????????????? | | ??? ??# = ## #???????????????????? | | ??# #?# ## # ??????????#???????? | | ??# #?# ## #?#?????#???????????? | | ??# #?# ## #?????????#?????????? | | ?## ######+####### #??????? ??? ???????? | | ?# #????# #?? ????? ?????????? | | ?# #????# ##? ????????? ?????? | | ## #????# #?? #???????"??????? | | ?# ##### ##???## ### +??? ??"???????? | | ?# #####+###### * ##? #??????????????? | | ?# # # ##? #??????????????? | | ## # #= ### #?????? ???????? | | # """ """ #[ #??????????????? | | + """ """ # ##????#????????? | | # """ """ =#% "#?????????????? | | ### ## #= """ T#?????????????? | | ?##+############## [=G" "#?????????????? | | ?????????#?????## """ ##?????????????? | | ???????????????# #?????????????? | | ?????#?????????## #?????????????? | | ????????????????# ##+#######?????????? | | ??????#?????????##+### #?????????? | | ????????#????????????# !! #?????????? | | ??#??#?#?????????????# !@ #?????????? | | ??????????????"????? # ![ #?????????? | | ?????????????????????# #?????????? | | ?????????????????????# """ #?????????? | | #?#??????????????????# """ #?????????? | | #????????????????????# """ #?????????? | | ?????????#???????????# #?????????? | | ????????????#????????##########?????????? | | ????????????????????????????????????????? | | | | | | | | | | | | | | | | | | | | | | | | | | | | | | | | | +----------------------------------------------------+ Best States ------------- Heat Dissipation 31 Energy Generation 10 Energy Capacity 125 Matter Stores 300 Matter Capacity 300 Sight Range 16 Terrain Scan Range 16 Terrain Scan Density 10 Armor Coverage 225 Resistance: KI 20 Resistance: TH 20 Resistance: EX 20 Resistance: EM 20 Resistance: I 20 Resistance: S 20 Resistance: P 20 Core Shielding 20 Evasion (%) 42 Offensive Hacking 10 Item Schematics ----------------- None Robot Schematics ------------------ None Fabricated ------------ Nothing Alien Tech Used ----------------- None Achievements -------------- None Challenges ------------ None Game ------ Seed SwarmRagnarokReconfigurator Manual? 0 Play Time 00:14:36 Cumulative 29.0 hours Start 2024.10.21 @ 12:13:39 End 2025.03.26 @ 17:29:38 Sessions 2 Manual Loads 0 Difficulty Adventurer Special Mode None Game No. 11 Rogue 3 Adventurer 8 Explorer 0 Win Type - Total 1 Types 1/0/0/0/0/0/0/0/0 Lore% 14 Gallery% 23 Achievement% 23 Wizard Run 0 Options --------- Layout 1 ASCII 0 Keyboard 0 Movement Numpad Keybinds 0 Fullscreen 1 Font 24/Smallcaps Map View 50x35 Zoom Use 0% Tactical HUD 1 Map Filters NONE Filters NONE Steam 1 RUN: 1b294662-d94f-4b6e-841f-92e72e9bb800